fUST/lending_fUST_20250202
["ID","MTS","AMOUNT","RATE_DAILY","PERIOD"]
[351230661,1738458647982,-162.49,0.00017999,2]
[351230662,1738458647991,-500.0,0.00017999,2]
[351230663,1738458648001,-500.0,0.00017999,2]
[351230664,1738458648010,-500.0,0.00017999,2]
[351230665,1738458648019,-500.0,0.00017999,2]
[351230666,1738458648029,-346946.22573359,0.00018,15]
[351230667,1738458648043,-63376.78470252,0.00018,15]
[351230671,1738459092558,185.084094,0.00013973,2]
[351230672,1738459183380,500.0,0.00014964,2]
[351230673,1738459305730,500.0,0.00014964,2]
[351230676,1738459449112,22329.439567,0.0002045,120]
[351230693,1738459604137,-264.5848197,0.00015612,2]
[351230694,1738459653154,-279.50248256,0.00015612,2]
[351230696,1738459722914,8647.62895331,0.00013,2]
[351230698,1738459746126,-300.0,0.00015612,2]
[351230699,1738459746148,-17935.62525931,0.00015613,2]
[351230700,1738459752121,-6722.98317427,0.00015613,2]
[351230701,1738459757098,-241.39156642,0.00015613,2]
[351230702,1738459757120,-30495.5435196,0.00016402,2]
[351230703,1738459757143,-500.0,0.00016437,2]
[351230704,1738459757165,-257.02819085,0.00016437,2]
[351230705,1738459757187,-500.0,0.00016438,2]
[351230706,1738459757208,-500.0,0.00016438,2]
[351230707,1738459757228,-500.0,0.00016438,2]
[351230708,1738459757250,-500.0,0.00016438,2]
[351230709,1738459757273,-500.0,0.00016438,2]
[351230710,1738459757294,-502.75685267,0.00016438,2]
[351230711,1738459757314,-500.0,0.00016438,2]
[351230712,1738459757334,-501.5007339,0.00016438,2]
[351230713,1738459757356,-500.0,0.00016438,2]
[351230714,1738459757378,-196.56,0.00016438,2]
[351230715,1738459757399,-500.0,0.00016438,2]
[351230716,1738459757426,-500.0,0.00016438,2]
[351230717,1738459757447,-500.0,0.00016438,2]
[351230718,1738459757469,-500.0,0.00016438,2]
[351230719,1738459757638,-500.0,0.00016438,2]
[351230720,1738459757661,-500.0,0.00016438,2]
[351230721,1738459757683,-500.0,0.00016438,2]
[351230722,1738459757706,-500.0,0.00016438,2]
[351230723,1738459757727,-500.0,0.00016438,2]
[351230724,1738459757748,-505.25518868,0.00016438,2]
[351230725,1738459757770,-500.0,0.00016438,2]
[351230726,1738459757792,-500.0,0.00016438,2]
[351230727,1738459757814,-500.0,0.00016438,2]
[351230728,1738459757836,-500.0,0.00016438,2]
[351230729,1738459757859,-500.0,0.00016438,2]
[351230730,1738459757880,-500.0,0.00016438,2]
[351230731,1738459757901,-500.0,0.00016438,2]
[351230732,1738459757922,-500.0,0.00016438,2]
[351230733,1738459757942,-500.0,0.00016438,2]
[351230734,1738459757962,-500.0,0.00016438,2]
[351230735,1738459757984,-500.0,0.00016438,2]
[351230736,1738459758005,-500.0,0.00016438,2]
[351230737,1738459758027,-500.0,0.00016438,2]
[351230738,1738459758049,-500.0,0.00016438,2]
[351230739,1738459758072,-500.0,0.00016438,2]
[351230740,1738459758094,-500.0,0.00016438,2]
[351230741,1738459758121,-500.0,0.00016438,2]
[351230742,1738459758143,-506.48418906,0.00016438,2]
[351230743,1738459758165,-517.54274188,0.00016438,2]
[351230744,1738459758188,-500.0,0.00016438,2]
[351230745,1738459758210,-507.94244648,0.00016438,2]
[351230746,1738459758233,-764.07,0.00016438,2]
[351230747,1738459758255,-500.0,0.00016438,2]
[351230748,1738459758277,-500.0,0.00016438,2]
[351230749,1738459758298,-500.0,0.00016438,2]
[351230750,1738459758325,-500.0,0.00016438,2]
[351230751,1738459758346,-500.0,0.00016438,2]
[351230752,1738459758370,-983.77,0.00016438,2]
[351230753,1738459758392,-500.0,0.00016438,2]
[351230754,1738459758417,-500.0,0.00016438,2]
[351230755,1738459758440,-1112.09,0.00016438,2]
[351230756,1738459758463,-500.0,0.00016438,2]
[351230757,1738459758487,-846.83,0.00016438,2]
[351230758,1738459758511,-593.19,0.00016438,2]
[351230759,1738459758532,-486.61859352,0.00016438,2]
[351230760,1738459758554,-500.0,0.00016438,2]
[351230761,1738459758576,-500.0,0.00016438,2]
[351230762,1738459758599,-500.0,0.00016438,2]
[351230763,1738459758622,-500.0,0.00016438,2]
[351230764,1738459758643,-500.0,0.00016438,2]
[351230765,1738459758664,-500.0,0.00016438,2]
[351230766,1738459758686,-500.0,0.00016438,2]
[351230767,1738459758708,-500.0,0.00016438,2]
[351230768,1738459758730,-500.0,0.00016438,2]
[351230769,1738459758751,-282.05,0.00016438,2]
[351230770,1738459758773,-500.0,0.00016438,2]
[351230771,1738459758797,-976.85,0.00016438,2]
[351230772,1738459758821,-500.0,0.00016438,2]
[351230773,1738459758842,-251.7,0.00016438,2]
[351230774,1738459758864,-500.0,0.00016438,2]
[351230775,1738459758889,-2011.81,0.00016438,2]
[351230776,1738459758910,-500.0,0.00016438,2]
[351230777,1738459758932,-518.73744126,0.00016438,2]
[351230778,1738459758953,-332.07376912,0.00016438,2]
[351230779,1738459758975,-500.0,0.00016438,2]
[351230780,1738459758999,-500.0,0.00016438,2]
[351230781,1738459759022,-9426.19,0.00016438,2]
[351230782,1738459759043,-500.0,0.00016438,2]
[351230783,1738459759064,-500.0,0.00016438,2]
[351230784,1738459759086,-500.0,0.00016438,2]
[351230785,1738459759108,-500.0,0.00016438,2]
[351230786,1738459759129,-502.33923035,0.00016438,2]
[351230787,1738459759152,-500.0,0.00016438,2]
[351230788,1738459759175,-340.19792056,0.00016438,2]
[351230789,1738459759196,-500.0,0.00016438,2]
[351230790,1738459759217,-500.0,0.00016438,2]
[351230791,1738459759242,-500.0,0.00016438,2]
[351230792,1738459759263,-500.0,0.00016438,2]
[351230793,1738459759284,-224.32,0.00016438,2]
[351230794,1738459759307,-994.21,0.00016438,2]
[351230795,1738459759327,-219.42,0.00016438,2]
[351230796,1738459759348,-500.0,0.00016438,2]
[351230797,1738459759371,-500.0,0.00016438,2]
[351230798,1738459759395,-500.0,0.00016438,2]
[351230799,1738459759418,-500.0,0.00016438,2]
[351230800,1738459759440,-500.0,0.00016438,2]
[351230801,1738459759460,-425.06445523,0.00016438,2]
[351230802,1738459759481,-500.0,0.00016438,2]
[351230803,1738459759502,-500.0,0.00016438,2]
[351230804,1738459759523,-500.0,0.00016438,2]
[351230805,1738459759542,-500.0,0.00016438,2]
[351230806,1738459759562,-500.0,0.00016438,2]
[351230807,1738459759582,-500.0,0.00016438,2]
[351230808,1738459759602,-500.0,0.00016438,2]
[351230809,1738459759623,-500.0,0.00016438,2]
[351230810,1738459759646,-3462.46,0.00016438,2]
[351230811,1738459759666,-500.0,0.00016438,2]
[351230812,1738459759686,-500.0,0.00016438,2]
[351230813,1738459759707,-500.0,0.00016438,2]
[351230814,1738459759729,-1482.04,0.00016438,2]
[351230815,1738459759751,-500.0,0.00016438,2]
[351230816,1738459759771,-500.0,0.00016438,2]
[351230817,1738459759791,-503.86893817,0.00016438,2]
[351230818,1738459759812,-500.0,0.00016438,2]
[351230819,1738459759834,-697.3,0.00016438,2]
[351230820,1738459759854,-500.0,0.00016438,2]
[351230821,1738459759875,-500.0,0.00016438,2]
[351230822,1738459759895,-394.09469254,0.00016438,2]
[351230823,1738459759916,-3827.19,0.00016438,2]
[351230824,1738459759938,-10496.58532093,0.000165,2]
[351230825,1738459768086,-811.55,0.00016438,2]
[351230826,1738459768106,-500.0,0.00016438,2]
[351230827,1738459768127,-500.0,0.00016438,2]
[351230828,1738459768146,-7541.72223286,0.000165,2]
[351230829,1738459768166,-500.0,0.00016574,2]
[351230830,1738459768185,-500.0,0.00016575,2]
[351230831,1738459768205,-500.0,0.00016575,2]
[351230832,1738459768225,-500.0,0.00016575,2]
[351230833,1738459768244,-500.0,0.00016575,2]
[351230834,1738459768264,-500.0,0.00016575,2]
[351230835,1738459768284,-500.0,0.00016575,2]
[351230836,1738459768304,-512.7,0.00016575,2]
[351230837,1738459768324,-500.0,0.00016575,2]
[351230838,1738459768344,-500.0,0.00016575,2]
[351230839,1738459768366,-500.0,0.00016575,2]
[351230840,1738459768386,-424.8833044,0.00016575,2]
[351230841,1738459768405,-208.96,0.00016575,2]
[351230842,1738459768430,-764.07,0.00016575,2]
[351230843,1738459768450,-500.0,0.00016575,2]
[351230844,1738459768472,-983.77,0.00016575,2]
[351230845,1738459768491,-500.0,0.00016575,2]
[351230846,1738459768513,-1112.09,0.00016575,2]
[351230847,1738459768533,-500.0,0.00016575,2]
[351230848,1738459768553,-500.0,0.00016575,2]
[351230849,1738459768573,-500.0,0.00016575,2]
[351230850,1738459768593,-500.0,0.00016575,2]
[351230851,1738459768614,-500.0,0.00016575,2]
[351230852,1738459768634,-976.85,0.00016575,2]
[351230853,1738459768653,-500.0,0.00016575,2]
[351230854,1738459768674,-2011.81,0.00016575,2]
[351230855,1738459768693,-500.0,0.00016575,2]
[351230856,1738459768712,-500.0,0.00016575,2]
[351230857,1738459768732,-9426.19,0.00016575,2]
[351230858,1738459768752,-500.0,0.00016575,2]
[351230859,1738459768771,-500.0,0.00016575,2]
[351230860,1738459768790,-588.79,0.00016575,2]
[351230861,1738459768810,-500.0,0.00016575,2]
[351230862,1738459768831,-500.0,0.00016575,2]
[351230863,1738459768850,-500.0,0.00016575,2]
[351230864,1738459768872,-994.21,0.00016575,2]
[351230865,1738459768893,-500.0,0.00016575,2]
[351230866,1738459768913,-500.0,0.00016575,2]
[351230867,1738459768933,-500.0,0.00016575,2]
[351230868,1738459768955,-3462.46,0.00016575,2]
[351230869,1738459768974,-500.0,0.00016575,2]
[351230870,1738459768994,-628.86,0.00016575,2]
[351230871,1738459769014,-500.0,0.00016575,2]
[351230872,1738459769035,-1482.04,0.00016575,2]
[351230873,1738459769055,-500.0,0.00016575,2]
[351230874,1738459769075,-214.87981809,0.00016575,2]
[351230875,1738459769096,-697.3,0.00016575,2]
[351230876,1738459769116,-500.0,0.00016575,2]
[351230877,1738459769138,-3827.19,0.00016575,2]
[351230878,1738459769158,-811.55,0.00016575,2]
[351230879,1738459769177,-500.0,0.00016575,2]
[351230880,1738459769197,-500.0,0.00016711,2]
[351230881,1738459769218,-500.0,0.00016711,2]
[351230882,1738459769238,-154.85,0.00016712,2]
[351230883,1738459769258,-500.0,0.00016712,2]
[351230884,1738459769278,-500.0,0.00016712,2]
[351230885,1738459769297,-500.0,0.00016712,2]
[351230886,1738459769317,-500.0,0.00016712,2]
[351230887,1738459769337,-500.0,0.00016712,2]
[351230888,1738459769358,-500.0,0.00016712,2]
[351230889,1738459769379,-764.07,0.00016712,2]
[351230890,1738459769400,-500.0,0.00016712,2]
[351230891,1738459769424,-983.77,0.00016712,2]
[351230892,1738459769444,-500.0,0.00016712,2]
[351230893,1738459769466,-1112.09,0.00016712,2]
[351230894,1738459769486,-500.0,0.00016712,2]
[351230895,1738459769509,-500.0,0.00016712,2]
[351230896,1738459769530,-500.0,0.00016712,2]
[351230897,1738459769550,-500.0,0.00016712,2]
[351230898,1738459769570,-500.0,0.00016712,2]
[351230899,1738459769593,-976.85,0.00016712,2]
[351230900,1738459769614,-2011.81,0.00016712,2]
[351230901,1738459769634,-500.0,0.00016712,2]
[351230902,1738459769654,-500.0,0.00016712,2]
[351230903,1738459769676,-9426.19,0.00016712,2]
[351230904,1738459769697,-500.0,0.00016712,2]
[351230905,1738459769716,-165.34010399,0.00016712,2]
[351230906,1738459769736,-500.0,0.00016712,2]
[351230907,1738459769757,-500.0,0.00016712,2]
[351230908,1738459769874,-500.0,0.00016712,2]
[351230909,1738459769897,-994.21,0.00016712,2]
[351230910,1738459769919,-500.0,0.00016712,2]
[351230911,1738459769944,-500.0,0.00016712,2]
[351230912,1738459769965,-500.0,0.00016712,2]
[351230913,1738459769987,-3462.46,0.00016712,2]
[351230914,1738459770007,-500.0,0.00016712,2]
[351230915,1738459770028,-500.0,0.00016712,2]
[351230916,1738459770052,-1482.04,0.00016712,2]
[351230917,1738459770072,-500.0,0.00016712,2]
[351230918,1738459770093,-697.3,0.00016712,2]
[351230919,1738459770113,-500.0,0.00016712,2]
[351230920,1738459770134,-3827.19,0.00016712,2]
[351230921,1738459770155,-811.55,0.00016712,2]
[351230922,1738459770177,-500.0,0.00016848,2]
[351230923,1738459770196,-500.0,0.00016849,2]
[351230924,1738459770216,-500.0,0.00016849,2]
[351230925,1738459770236,-243.00503553,0.00016849,2]
[351230926,1738459770257,-500.0,0.00016849,2]
[351230927,1738459770279,-500.0,0.00016849,2]
[351230928,1738459770299,-500.0,0.00016849,2]
[351230929,1738459770324,-764.07,0.00016849,2]
[351230930,1738459770344,-500.0,0.00016849,2]
[351230931,1738459770368,-983.77,0.00016849,2]
[351230932,1738459770390,-500.0,0.00016849,2]
[351230933,1738459770429,-1112.09,0.00016849,2]
[351230934,1738459770454,-500.0,0.00016849,2]
[351230935,1738459770476,-500.0,0.00016849,2]
[351230936,1738459770500,-500.0,0.00016849,2]
[351230937,1738459770522,-500.0,0.00016849,2]
[351230938,1738459770544,-500.0,0.00016849,2]
[351230939,1738459770567,-976.85,0.00016849,2]
[351230940,1738459770590,-2011.81,0.00016849,2]
[351230941,1738459770611,-500.0,0.00016849,2]
[351230942,1738459770632,-500.0,0.00016849,2]
[351230943,1738459770658,-7677.39079478,0.00016849,2]
[351230977,1738459832908,-300.0,0.00016437,2]
[351230978,1738459832918,-509.06159686,0.00016438,2]
[351230979,1738459832929,-819.81,0.00016438,2]
[351230980,1738459832938,-500.0,0.00016438,2]
[351230981,1738459832947,-500.0,0.00016438,2]
[351230982,1738459832956,-926.75,0.00016438,2]
[351230983,1738459832966,-636.72,0.00016438,2]
[351230984,1738459832975,-500.0,0.00016438,2]
[351230985,1738459832985,-500.0,0.00016438,2]
[351230986,1738459832995,-500.0,0.00016438,2]
[351230987,1738459833004,-500.0,0.00016438,2]
[351230989,1738459833014,-500.0,0.00016438,2]
[351230990,1738459833024,-500.0,0.00016438,2]
[351230991,1738459833033,-4422.5,0.00016438,2]
[351230992,1738459833044,-7976.09,0.00016438,2]
[351230993,1738459833053,-500.0,0.00016438,2]
[351230994,1738459833063,-500.0,0.00016438,2]
[351230995,1738459833073,-819.81,0.00016575,2]
[351230996,1738459833082,-359.51122858,0.00016575,2]
[351230997,1738459833095,-140.48877142,0.00016575,2]
[351230998,1738459833105,-340.32122858,0.00016575,2]
[351230999,1738459833117,-586.42877142,0.00016575,2]
[351231000,1738459833126,-636.72,0.00016575,2]
[351231001,1738459833136,-500.0,0.00016575,2]
[351231002,1738459833146,-500.0,0.00016575,2]
[351231003,1738459833156,-500.0,0.00016575,2]
[351231004,1738459833166,-507.18578573,0.00016575,2]
[351231005,1738459833177,-500.0,0.00016575,2]
[351231006,1738459833187,-500.0,0.00016575,2]
[351231007,1738459833197,-4422.5,0.00016575,2]
[351231008,1738459833206,-7142.0704389,0.00016575,2]
[351231009,1738459833219,-416.0,0.00016575,2]
[351231023,1738459838867,-500.0,0.00016438,2]
[351231024,1738459838877,-500.0,0.00016438,2]
[351231025,1738459838887,-418.0195611,0.00016575,2]
[351231026,1738459838896,-500.0,0.00016575,2]
[351231027,1738459838905,-443.41062945,0.00016575,2]
[351231028,1738459838915,-500.0,0.00016575,2]
[351231029,1738459838924,-819.81,0.00016712,2]
[351231030,1738459838934,-926.75,0.00016712,2]
[351231031,1738459838943,-636.72,0.00016712,2]
[351231032,1738459838953,-500.0,0.00016712,2]
[351231033,1738459838962,-500.0,0.00016712,2]
[351231034,1738459838971,-500.0,0.00016712,2]
[351231035,1738459838981,-500.0,0.00016712,2]
[351231036,1738459838991,-500.0,0.00016712,2]
[351231037,1738459839000,-4422.5,0.00016712,2]
[351231038,1738459839009,-7976.09,0.00016712,2]
[351231039,1738459839019,-500.0,0.00016712,2]
[351231040,1738459839028,-500.0,0.00016712,2]
[351231041,1738459839037,-500.0,0.00016849,2]
[351231042,1738459839046,-500.0,0.00016849,2]
[351231043,1738459839056,-994.21,0.00016849,2]
[351231044,1738459839065,-500.0,0.00016849,2]
[351231045,1738459839075,-500.0,0.00016849,2]
[351231046,1738459839090,-422.25,0.00016849,2]
[351231047,1738459839099,-3462.46,0.00016849,2]
[351231049,1738459839109,-500.0,0.00016849,2]
[351231050,1738459839118,-500.0,0.00016849,2]
[351231051,1738459839127,-1482.04,0.00016849,2]
[351231052,1738459839136,-500.0,0.00016849,2]
[351231054,1738459839146,-697.3,0.00016849,2]
[351231056,1738459839155,-500.0,0.00016849,2]
[351231057,1738459839165,-3827.19,0.00016849,2]
[351231059,1738459839174,-811.55,0.00016849,2]
[351231060,1738459839183,-819.81,0.00016849,2]
[351231061,1738459839193,-926.75,0.00016849,2]
[351231062,1738459839202,-780.479015,0.00016849,2]
[351231063,1738459839213,-636.72,0.00016849,2]
[351231064,1738459839222,-500.0,0.00016849,2]
[351231065,1738459839231,-780.479015,0.00016849,2]
[351231066,1738459839241,-500.0,0.00016849,2]
[351231067,1738459839251,-500.0,0.00016849,2]
[351231068,1738459839260,-500.0,0.00016849,2]
[351231069,1738459839270,-500.0,0.00016849,2]
[351231070,1738459839279,-4422.5,0.00016849,2]
[351231071,1738459839288,-7976.09,0.00016849,2]
[351231072,1738459839298,-500.0,0.00016849,2]
[351231073,1738459839307,-500.0,0.00016849,2]
[351231074,1738459839316,-176.21875832,0.00016886,2]
[351231075,1738459839326,-500.0,0.00016985,2]
[351231076,1738459839336,-500.0,0.00016985,2]
[351231077,1738459839345,-500.0,0.00016986,2]
[351231078,1738459839355,-500.0,0.00016986,2]
[351231079,1738459839364,-500.0,0.00016986,2]
[351231080,1738459839374,-500.0,0.00016986,2]
[351231081,1738459839383,-500.0,0.00016986,2]
[351231082,1738459839392,-500.0,0.00016986,2]
[351231083,1738459839401,-976.85,0.00016986,2]
[351231084,1738459839411,-2011.81,0.00016986,2]
[351231085,1738459839420,-500.0,0.00016986,2]
[351231086,1738459839431,-500.0,0.00016986,2]
[351231087,1738459839441,-500.0,0.00016986,2]
[351231088,1738459839454,-500.0,0.00016986,2]
[351231089,1738459839463,-994.21,0.00016986,2]
[351231090,1738459839472,-500.0,0.00016986,2]
[351231091,1738459839482,-500.0,0.00016986,2]
[351231092,1738459839491,-3462.46,0.00016986,2]
[351231093,1738459839500,-500.0,0.00016986,2]
[351231094,1738459839510,-500.0,0.00016986,2]
[351231095,1738459839519,-1482.04,0.00016986,2]
[351231096,1738459839528,-500.0,0.00016986,2]
[351231097,1738459839538,-697.3,0.00016986,2]
[351231098,1738459839547,-500.0,0.00016986,2]
[351231099,1738459839557,-3827.19,0.00016986,2]
[351231100,1738459839566,-811.55,0.00016986,2]
[351231101,1738459839575,-819.81,0.00016986,2]
[351231102,1738459839585,-926.75,0.00016986,2]
[351231103,1738459839594,-636.72,0.00016986,2]
[351231104,1738459839604,-500.0,0.00016986,2]
[351231105,1738459839613,-221.67,0.00016986,2]
[351231106,1738459839623,-500.0,0.00016986,2]
[351231107,1738459839632,-500.0,0.00016986,2]
[351231108,1738459839641,-500.0,0.00016986,2]
[351231109,1738459839651,-4422.5,0.00016986,2]
[351231110,1738459839660,-7976.09,0.00016986,2]
[351231111,1738459839669,-500.0,0.00016986,2]
[351231112,1738459839679,-500.0,0.00016986,2]
[351231113,1738459839688,-500.0,0.00016997,2]
[351231114,1738459839697,-500.0,0.00016997,2]
[351231115,1738459839707,-500.0,0.00016997,2]
[351231116,1738459839716,-500.0,0.00016997,2]
[351231117,1738459839725,-500.0,0.00016997,2]
[351231118,1738459839735,-780.479015,0.00016997,2]
[351231119,1738459839745,-780.479015,0.00016997,2]
[351231120,1738459839755,-500.0,0.00016998,2]
[351231121,1738459839764,-320.09970471,0.00016998,2]
[351231122,1738459839776,-226.30262766,0.00016998,2]
[351231123,1738459839790,-500.0,0.00016998,2]
[351231124,1738459839805,-500.0,0.00016998,2]
[351231125,1738459839819,-500.0,0.00016998,2]
[351231126,1738459839833,-500.0,0.00016998,2]
[351231127,1738459839843,-224.14423402,0.00016998,2]
[351231128,1738459839855,-500.0,0.00016998,2]
[351231129,1738459839868,-500.0,0.00016998,2]
[351231130,1738459839881,-521.80249129,0.00016998,2]
[351231131,1738459839893,-500.0,0.00016998,2]
[351231132,1738459839906,-500.0,0.00016998,2]
[351231133,1738459839919,-581.03,0.00016998,2]
[351231134,1738459839932,-500.0,0.00016998,2]
[351231135,1738459839945,-416.22236119,0.00016998,2]
[351231136,1738459839959,-500.0,0.00016998,2]
[351231137,1738459839972,-500.0,0.00016998,2]
[351231138,1738459839983,-500.0,0.00016998,2]
[351231139,1738459839996,-500.0,0.00016998,2]
[351231140,1738459840008,-500.0,0.00016998,2]
[351231141,1738459840021,-625.60647241,0.00016998,2]
[351231142,1738459840039,-500.0,0.00016998,2]
[351231143,1738459840052,-500.0,0.00016998,2]
[351231144,1738459840064,-500.17889609,0.00016998,2]
[351231145,1738459840075,-327.81420933,0.00016998,2]
[351231146,1738459840085,-500.0,0.00016998,2]
[351231147,1738459840097,-500.0,0.00016998,2]
[351231148,1738459840109,-501.69804618,0.00016998,2]
[351231149,1738459840122,-500.0,0.00016998,2]
[351231150,1738459840134,-511.85820235,0.00016998,2]
[351231151,1738459840147,-500.0,0.00016998,2]
[351231152,1738459840160,-500.0,0.00016998,2]
[351231153,1738459840173,-500.0,0.00016998,2]
[351231154,1738459840187,-500.0,0.00016998,2]
[351231155,1738459840199,-500.0,0.00016998,2]
[351231156,1738459840213,-500.0,0.00016998,2]
[351231157,1738459840223,-202.04903747,0.00016998,2]
[351231158,1738459840234,-500.0,0.00016998,2]
[351231159,1738459840244,-500.0,0.00016998,2]
[351231160,1738459840256,-500.0,0.00016998,2]
[351231161,1738459840269,-500.0,0.00016998,2]
[351231163,1738459840282,-501.83115626,0.00016998,2]
[351231164,1738459840294,-466.93887757,0.00016998,2]
[351231165,1738459840306,-500.0,0.00016998,2]
[351231166,1738459840316,-500.0,0.00016998,2]
[351231167,1738459840329,-151.0,0.00016998,2]
[351231168,1738459840340,-500.0,0.00016998,2]
[351231171,1738459840353,-1669.362521,0.00016998,2]
[351231173,1738459840365,-1669.362521,0.00016998,2]
[351231174,1738459840376,-168.573544,0.00016998,2]
[351231175,1738459840386,-168.573544,0.00016998,2]
[351231176,1738459840397,-500.0,0.00016999,2]
[351231177,1738459840408,-227.30629676,0.00016999,2]
[351231178,1738459840419,-151.0,0.00017,2]
[351231179,1738459840430,-153111.483782,0.00017,7]
[351231180,1738459840441,-151.0,0.000171,2]
[351231181,1738459840455,-606.60522008,0.00017122,2]
[351231182,1738459840466,-500.0,0.00017122,2]
[351231183,1738459840477,-500.0,0.00017123,2]
[351231184,1738459840489,-500.0,0.00017123,2]
[351231185,1738459840500,-500.0,0.00017123,2]
[351231186,1738459840512,-500.0,0.00017123,2]
[351231187,1738459840523,-500.0,0.00017123,2]
[351231188,1738459840535,-500.0,0.00017123,2]
[351231189,1738459840546,-976.85,0.00017123,2]
[351231190,1738459840557,-2011.81,0.00017123,2]
[351231191,1738459840568,-500.0,0.00017123,2]
[351231192,1738459840579,-500.0,0.00017123,2]
[351231193,1738459840590,-500.0,0.00017123,2]
[351231194,1738459840601,-500.0,0.00017123,2]
[351231195,1738459840612,-994.21,0.00017123,2]
[351231196,1738459840623,-500.0,0.00017123,2]
[351231197,1738459840635,-500.0,0.00017123,2]
[351231198,1738459840647,-3462.46,0.00017123,2]
[351231199,1738459840658,-500.0,0.00017123,2]
[351231200,1738459840669,-500.0,0.00017123,2]
[351231201,1738459840680,-1482.04,0.00017123,2]
[351231202,1738459840691,-500.0,0.00017123,2]
[351231203,1738459840702,-697.3,0.00017123,2]
[351231205,1738459840713,-593.1007218,0.00017123,2]
[351231207,1738459840724,-3827.19,0.00017123,2]
[351231208,1738459840734,-811.55,0.00017123,2]
[351231209,1738459840745,-819.81,0.00017123,2]
[351231210,1738459840756,-926.75,0.00017123,2]
[351231211,1738459840767,-780.479015,0.00017123,2]
[351231212,1738459840778,-636.72,0.00017123,2]
[351231213,1738459840789,-500.0,0.00017123,2]
[351231214,1738459840799,-780.479015,0.00017123,2]
[351231215,1738459840810,-500.0,0.00017123,2]
[351231216,1738459840822,-500.0,0.00017123,2]
[351231217,1738459840833,-500.0,0.00017123,2]
[351231218,1738459840844,-4422.5,0.00017123,2]
[351231219,1738459840856,-7976.09,0.00017123,2]
[351231220,1738459840868,-500.0,0.00017123,2]
[351231221,1738459840879,-500.0,0.00017123,2]
[351231222,1738459840890,-520.37838226,0.00017135,2]
[351231223,1738459840901,-500.0,0.00017135,2]
[351231224,1738459840913,-500.0,0.00017135,2]
[351231225,1738459840924,-500.0,0.00017135,2]
[351231226,1738459840935,-500.0,0.00017135,2]
[351231227,1738459840946,-462.65437725,0.00017135,2]
[351231228,1738459840957,-500.0,0.00017135,2]
[351231229,1738459840967,-500.0,0.00017135,2]
[351231230,1738459840976,-500.0,0.00017135,2]
[351231231,1738459840985,-500.0,0.00017135,2]
[351231232,1738459840994,-151.0,0.00017135,2]
[351231237,1738459841130,-272.48,0.00017135,2]
[351231238,1738459841146,-151.0,0.00017135,2]
[351231239,1738459841155,-151.0,0.00017135,2]
[351231240,1738459841165,-151.0,0.00017135,2]
[351231241,1738459841174,-253.657764,0.00017135,2]
[351231242,1738459841186,-253.657764,0.00017135,2]
[351231243,1738459841196,-578.870679,0.00017135,2]
[351231244,1738459841205,-578.870679,0.00017135,2]